fUSD/lending_fUSD_20240531
["ID","MTS","AMOUNT","RATE_DAILY","PERIOD"]
[328325174,1717165844836,-581.0403766,0.0003289,2]
[328325175,1717165844847,-500.0,0.0003289,2]
[328325176,1717165844860,-378.78,0.0003289,2]
[328325177,1717165844886,-410.13136204,0.00016726,2]
[328325178,1717165844897,-22275.28516567,0.0003289,2]
[328325179,1717165844909,-767.56350046,0.0003289,2]
[328325180,1717165844920,-504.77510357,0.0003289,2]
[328325181,1717165844934,-5017.11548854,0.0003289,2]
[328325182,1717165845748,-3351.22198318,0.0003289,2]
[328325183,1717165845761,-421.62998581,0.0003289,2]
[328325202,1717165846329,-159.0,0.00030541,2]
[328325203,1717165846339,-525.17,0.00032466,2]
[328325205,1717165846348,-389684.5811112,0.0003289,2]
[328325217,1717165846457,-426.6877151,0.0003289,2]
[328325220,1717165846469,-4176.69491516,0.0003289,2]
[328325222,1717165846485,-17298.0,0.0003289,2]
[328325225,1717165846497,-611.967,0.0003289,2]
[328325227,1717165846510,-361.81700272,0.0003289,2]
[328325229,1717165846521,-302.524,0.0003289,2]
[328325231,1717165846532,-1693.325,0.0003289,2]
[328325238,1717165846619,-1821.53671447,0.0003289,2]
[328325240,1717165846642,-677.34,0.0003289,2]
[328325242,1717165846656,-18932.39911654,0.0003289,2]
[328325243,1717165846667,-180.38347101,0.0003289,2]
[328325244,1717165846679,-299.26588838,0.0003289,4]
[328325245,1717165846690,-2000.0,0.0003289,2]
[328325246,1717165846700,-200.0,0.0003289,2]
[328325247,1717165846711,-500.0,0.0003289,2]
[328325248,1717165846720,-151.0,0.0003289,7]
[328325249,1717165846730,-151.0,0.0003289,7]
[328325250,1717165846740,-151.0,0.0003289,7]
[328325251,1717165846751,-151.0,0.0003289,7]
[328325252,1717165846762,-151.0,0.0003289,7]
[328325253,1717165846771,-151.0,0.0003289,7]
[328325254,1717165846781,-151.0,0.0003289,7]
[328325255,1717165846791,-151.0,0.0003289,7]
[328325256,1717165846800,-157.654905,0.0003289,7]
[328325257,1717165846810,-151.0,0.0003289,7]
[328325258,1717165846819,-151.0,0.0003289,7]
[328325259,1717165846829,-500.0,0.0003289,2]
[328325260,1717165846838,-222.756769,0.0003289,7]
[328325261,1717165846847,-154.530327,0.0003289,7]
[328325262,1717165846857,-155.87718,0.0003289,7]
[328325263,1717165846866,-200.0,0.0003289,2]
[328325264,1717165846876,-161.744645,0.0003289,7]
[328325265,1717165846885,-151.0,0.0003289,7]
[328325266,1717165846895,-151.0,0.0003289,7]
[328325267,1717165846904,-151.0,0.0003289,7]
[328325268,1717165846913,-151.0,0.0003289,7]
[328325269,1717165846923,-154.714217,0.0003289,7]
[328325270,1717165846935,-151.0,0.0003289,7]
[328325271,1717165846944,-151.0,0.0003289,7]
[328325272,1717165846953,-151.0,0.0003289,7]
[328325273,1717165846962,-151.0,0.0003289,7]
[328325274,1717165846971,-151.0,0.0003289,7]
[328325275,1717165846980,-151.0,0.0003289,7]
[328325276,1717165846990,-151.0,0.0003289,7]
[328325277,1717165846999,-151.0,0.0003289,7]
[328325278,1717165847009,-153.349684,0.0003289,7]
[328325279,1717165847018,-5703.423375,0.0003289,7]
[328325280,1717165847028,-5703.423375,0.0003289,7]
[328325281,1717165847038,-151.0,0.0003289,7]
[328325282,1717165847047,-151.0,0.0003289,7]
[328325283,1717165847057,-151.0,0.0003289,7]
[328325284,1717165847066,-153.063029,0.0003289,7]
[328325285,1717165847075,-151.0,0.0003289,7]
[328325286,1717165847084,-151.0,0.0003289,7]
[328325287,1717165847093,-159.28225,0.0003289,7]
[328325288,1717165847103,-2228.11230265,0.00032892,4]
[328325289,1717165847112,-500.0,0.00032895,3]
[328325290,1717165847122,-500.0,0.00032896,3]
[328325291,1717165847131,-500.0,0.00032899,11]
[328325292,1717165847140,-500.0,0.00032899,11]
[328325293,1717165847150,-500.0,0.00032899,11]
[328325294,1717165847160,-500.59,0.00032899,11]
[328325295,1717165847170,-500.0,0.00032899,11]
[328325296,1717165847180,-500.0,0.00032899,11]
[328325297,1717165847191,-500.0,0.00032899,11]
[328325298,1717165847200,-547.87,0.00032899,11]
[328325299,1717165847209,-305.09056075,0.000329,2]
[328325300,1717165847219,-929.23,0.000329,2]
[328325301,1717165847230,-685.02594806,0.000329,4]
[328325302,1717165847241,-769.61,0.000329,2]
[328325303,1717165847255,-178.35741748,0.000329,2]
[328325304,1717165847266,-151.0,0.000329,7]
[328325305,1717165847275,-151.0,0.000329,7]
[328325306,1717165847284,-151.0,0.000329,7]
[328325307,1717165847294,-13221.86200099,0.000329,30]
[328325308,1717165847304,-151.0,0.000329,7]
[328325309,1717165847314,-151.0,0.000329,7]
[328325310,1717165847324,-151.0,0.000329,7]
[328325311,1717165847334,-5012.0,0.000329,2]
[328325312,1717165847343,-4202.09841541,0.000329,2]
[328325313,1717165847353,-555.0,0.000329,2]
[328325314,1717165847363,-2000.0,0.000329,2]
[328325315,1717165847372,-41.72952625,0.000329,6]
[328325316,1717165997820,206.821383,0.00033783,120]
[328325317,1717165998392,181.13,0.00031218,120]
[328325318,1717166009399,203.134222,0.00033895,120]
[328325319,1717166023882,523541.07129376,0.00014,2]
[328325323,1717166093087,548245.99639986,0.00014,2]
[328325325,1717166108813,424792.11230996,0.00014,2]
[328325340,1717166197496,254780.09373049,0.00013,2]
[328325349,1717166256818,7390.7623,0.00034,90]
[328325379,1717166746528,-489.72508707,0.00015891,2]
[328325380,1717166746549,-687.51527312,0.00015892,2]
[328325381,1717166746569,-367.12304858,0.00015893,2]
[328325391,1717167032370,-0.311132,0.00015485,2]
[328325393,1717167032381,-756.27288357,0.00015485,2]
[328325410,1717167032633,-309.30920646,0.00015485,2]
[328325411,1717167032646,-524.41258543,0.00015486,2]
[328325412,1717167032655,-3202.52862574,0.00015486,2]
[328325413,1717167032666,-19607.06508437,0.00015486,2]
[328325414,1717167032678,-12617.97253971,0.00015486,2]
[328325415,1717167032687,-10801.80262907,0.00015487,2]
[328325416,1717167032696,-1388.97892771,0.00015585,2]
[328325417,1717167032706,-2332.82498739,0.00015788,2]
[328325418,1717167032715,-150.0,0.0001579,2]
[328325419,1717167032725,-180.49244644,0.00016208,2]
[328325420,1717167032735,-699.55778311,0.00016309,2]
[328325421,1717167032744,-306.35,0.00016623,2]
[328325422,1717167032753,-856.248,0.00016623,2]
[328325423,1717167032762,-544.85678975,0.00016719,2]
[328325424,1717167032772,-19749.44622392,0.00016726,2]
[328325425,1717167032781,-3310.82467787,0.000199,3]
[328325426,1717167032792,-180.49244642,0.00021178,2]
[328325427,1717167032805,-31553.80518436,0.000229,5]
[328325428,1717167032815,-6076.52152459,0.00024,3]
[328325429,1717167032824,-390.1,0.00024033,2]
[328325430,1717167032833,-156.11,0.00024384,2]
[328325431,1717167032843,-1050.0,0.00025,2]
[328325432,1717167032852,-250.0,0.00025799,2]
[328325433,1717167032861,-442.68,0.00025952,2]
[328325434,1717167032871,-171.2,0.00026002,2]
[328325435,1717167032880,-565.96,0.00026027,3]
[328325436,1717167032890,-23900.0,0.00026037,2]
[328325437,1717167032902,-180.49244642,0.00026149,2]
[328325438,1717167032911,-390.1,0.00026297,2]
[328325439,1717167032920,-4161.86594063,0.00027898,2]
[328325440,1717167032929,-200.0,0.00027935,2]
[328325441,1717167032938,-600.0,0.00028049,2]
[328325442,1717167032949,-1492.57,0.00028197,2]
[328325443,1717167032959,-171.27,0.00028244,2]
[328325445,1717167032969,-250.0,0.00028331,2]
[328325447,1717167032979,-390.1,0.00028561,2]
[328325449,1717167032988,-156.89,0.00028569,2]
[328325450,1717167032996,-173.66,0.00028597,2]
[328325451,1717167033006,-156.89,0.00028782,2]
[328325452,1717167033016,-156.89,0.00028995,2]
[328325453,1717167033025,-442.68,0.00029196,2]
[328325454,1717167033035,-156.89,0.00029207,2]
[328325455,1717167033046,-156.89,0.0002942,2]
[328325456,1717167033055,-156.89,0.00029633,2]
[328325457,1717167033066,-156.89,0.00029846,2]
[328325458,1717167033075,-1414.56658344,0.00029868,2]
[328325459,1717167033084,-341.47959277,0.00029868,2]
[328325460,1717167033094,-11723.0,0.000299,5]
[328325461,1717167033104,-261.01353915,0.00029968,2]
[328325462,1717167033113,-754.76520353,0.00029968,2]
[328325463,1717167033122,-156.89,0.00030058,2]
[328325464,1717167033131,-1414.56658336,0.00030238,10]
[328325465,1717167033140,-341.47959269,0.00030238,10]
[328325466,1717167033151,-357.0,0.0003056,2]
[328325467,1717167033160,-444.086,0.0003056,2]
[328325468,1717167033169,-1646.0,0.0003056,2]
[328325469,1717167033178,-152.001,0.0003056,2]
[328325470,1717167033187,-153.323,0.0003056,2]
[328325471,1717167033196,-614.0,0.0003056,2]
[328325472,1717167033205,-1178.551,0.0003056,2]
[328325473,1717167033215,-346.884,0.0003056,2]
[328325474,1717167033224,-300.0,0.000306,11]
[328325475,1717167033234,-1414.56658336,0.00030608,10]
[328325476,1717167033243,-341.47959269,0.00030608,10]
[328325477,1717167033253,-700.0,0.000307,11]
[328325478,1717167033262,-1100.0,0.000308,11]
[328325479,1717167033272,-390.1,0.00030825,2]
[328325480,1717167033281,-1000.0,0.000309,2]
[328325481,1717167033290,-1500.0,0.000309,11]
[328325482,1717167033300,-2500.0,0.000309,2]
[328325483,1717167033309,-1492.57,0.00030937,2]
[328325484,1717167033318,-1414.56658336,0.00030979,10]
[328325485,1717167033327,-341.47959269,0.00030979,10]
[328325486,1717167033336,-151.42,0.0003099,2]
[328325487,1717167033346,-151.42,0.0003099,2]
[328325488,1717167033355,-151.42,0.0003099,2]
[328325489,1717167033364,-151.42,0.0003099,2]
[328325490,1717167033373,-2375.57727561,0.00030996,2]
[328325491,1717167033382,-168.50404852,0.00030996,2]
[328325492,1717167033391,-213.8587464,0.00030996,2]
[328325493,1717167033400,-223.54286323,0.00030996,2]
[328325494,1717167033409,-737.96643478,0.00030996,2]
[328325495,1717167033419,-737.96643478,0.00030996,2]
[328325496,1717167033428,-326.42245188,0.00030996,2]
[328325497,1717167033437,-686.8929503,0.00030998,4]
[328325498,1717167033447,-491.98257278,0.00030998,4]
[328325499,1717167033456,-300.0,0.00030999,7]
[328325500,1717167033465,-30000.0,0.00031,2]
[328325501,1717167033474,-276911.24332809,0.00031,5]
[328325502,1717167033487,-13591.73681483,0.00031,5]
[328325503,1717167033498,-234069.46052465,0.00031,5]
[328325504,1717167033540,-5405.4,0.00031,5]
[328325505,1717167033551,-326142.30575888,0.00031,5]
[328325506,1717167033562,-6751.5724654,0.00031,5]
[328325507,1717167033573,-1018.272722,0.00031,5]
[328325508,1717167033584,-5533.60776916,0.00031,5]
[328325509,1717167038262,-190.94720952,0.00030996,2]
[328325510,1717167038271,-1123850.00590928,0.00031,5]
[328325511,1717167038285,-142555.72153294,0.00031,5]
[328325522,1717167038526,-675.64380765,0.00031,5]
[328325523,1717167038538,-328160.42372519,0.00031,5]
[328325524,1717167038550,-1013.797785,0.00031,5]
[328325525,1717167038561,-283.09461976,0.00031,5]
[328325526,1717167038575,-4141.13808369,0.00031,5]
[328325527,1717167038586,-3081.53750311,0.00031,5]
[328325528,1717167038599,-639.75,0.00031,5]
[328325529,1717167038610,-577.35372978,0.00031,5]
[328325530,1717167038799,-337.181845,0.00031,5]
[328325532,1717167038814,-10055.74999888,0.00031,5]
[328325588,1717167041624,-503.4787228,0.00031,5]
[328325612,1717167041879,-33898.8069055,0.00031,5]
[328325640,1717167042146,-326.29874463,0.00031,5]
[328325642,1717167042158,-213513.73770378,0.00031,5]
[328325644,1717167042168,-441.67,0.00031097,2]
[328325646,1717167042178,-441.67,0.00031105,2]
[328325648,1717167042187,-441.67,0.00031113,2]
[328325650,1717167042196,-180.49244642,0.00031119,2]
[328325652,1717167042206,-441.67,0.00031121,2]
[328325654,1717167042215,-441.67,0.00031129,2]
[328325656,1717167042224,-441.67,0.00031138,2]
[328325658,1717167042234,-150.05942182,0.00031141,7]
[328325659,1717167042243,-441.67,0.00031146,2]
[328325660,1717167042252,-441.67,0.00031154,2]
[328325661,1717167042262,-441.67,0.00031162,2]
[328325662,1717167042271,-441.67,0.0003117,2]
[328325664,1717167042281,-441.67,0.00031178,2]
[328325666,1717167042290,-441.67,0.00031187,2]
[328325668,1717167042300,-441.67,0.00031195,2]
[328325670,1717167042312,-2375.5772755,0.00031196,2]
[328325673,1717167042322,-441.67,0.00031203,2]
[328325675,1717167042331,-441.67,0.00031211,2]
[328325677,1717167042341,-441.67,0.00031219,2]
[328325678,1717167042352,-441.67,0.00031228,2]
[328325680,1717167042361,-441.67,0.00031236,2]
[328325681,1717167042370,-441.67,0.00031244,2]
[328325682,1717167042379,-441.67,0.00031252,2]
[328325683,1717167042390,-1414.56658336,0.00031349,10]
[328325684,1717167042401,-341.47959269,0.00031349,10]
[328325685,1717167042411,-155.5237192,0.00031358,7]
[328325686,1717167042420,-2375.5772755,0.00031397,3]
[328325687,1717167042429,-600.0,0.00031555,2]
[328325688,1717167042438,-2375.5772755,0.00031597,3]
[328325689,1717167042447,-150.05942182,0.00031627,7]
[328325690,1717167042456,-1066.37,0.00031644,2]
[328325691,1717167042465,-1414.56658336,0.00031719,10]
[328325692,1717167042475,-341.47959269,0.00031719,10]
[328325693,1717167042484,-151.42,0.0003179,2]
[328325694,1717167042494,-2375.5772755,0.00031797,3]
[328325695,1717167042505,-168545.60215925,0.000318,11]
[328325696,1717167042516,-32333.36078065,0.000318,7]
[328325697,1717167042525,-118005.50684137,0.000318,2]
[328325698,1717167042534,-150.05942182,0.0003194,7]
[328325699,1717167042543,-2375.5772755,0.00031998,3]
[328325700,1717167042552,-1414.56658336,0.00032089,10]
[328325701,1717167042561,-341.47959269,0.00032089,10]
[328325702,1717167042570,-168.5040485,0.00032098,2]
[328325703,1717167042578,-213.85874638,0.00032098,2]
[328325704,1717167042587,-223.54286321,0.00032098,2]
[328325705,1717167042599,-2375.5772755,0.00032198,4]
[328325706,1717167042609,-153.39,0.00032244,2]
[328325707,1717167042618,-1800.0,0.000323,11]
[328325708,1717167042627,-155.27407181,0.00032312,7]
[328325709,1717167042636,-150.05942182,0.00032333,7]
[328325710,1717167042645,-2375.5772755,0.00032399,4]
[328325711,1717167042655,-300.0,0.000324,11]
[328325712,1717167042664,-442.68,0.0003244,2]
[328325713,1717167042673,-1414.56658336,0.0003246,10]
[328325714,1717167042682,-341.47959269,0.0003246,10]
[328325715,1717167042691,-156.05724993,0.00032497,7]
[328325716,1717167042700,-300.0,0.000325,11]
[328325717,1717167042708,-7360.01,0.00032522,5]
[328325718,1717167042717,-231.18132,0.0003257,2]
[328325719,1717167042726,-150.0,0.00032581,2]
[328325720,1717167042735,-150.0,0.00032595,2]
[328325721,1717167042744,-2375.5772755,0.00032599,4]
[328325722,1717167042753,-300.0,0.000326,11]
[328325723,1717167042763,-303.88082433,0.00032619,2]
[328325724,1717167042771,-214.0,0.00032625,2]
[328325725,1717167042781,-500.0,0.00032632,2]
[328325726,1717167042790,-304.7258487,0.00032632,2]
[328325727,1717167042804,-155.09437935,0.00032632,4]
[328325728,1717167042813,-1500.0,0.00032633,2]
[328325729,1717167042822,-150.66714897,0.00032634,7]
[328325730,1717167042831,-1500.0,0.00032647,2]
[328325731,1717167042842,-1500.0,0.00032648,2]
[328325732,1717167042850,-412.17126416,0.00032656,2]
[328325733,1717167042859,-1500.0,0.00032669,2]
[328325734,1717167042869,-300.0,0.00032674,2]
[328325735,1717167042880,-150.0,0.00032677,2]
[328325736,1717167042890,-150.0,0.00032681,2]
[328325737,1717167042900,-1500.0,0.00032681,2]
[328325738,1717167042909,-1500.0,0.00032687,2]
[328325739,1717167042919,-150.0,0.00032694,2]
[328325740,1717167042928,-300.0,0.000327,11]
[328325741,1717167042938,-150.0,0.00032704,2]
[328325742,1717167042948,-150.0,0.00032713,2]
[328325743,1717167042957,-154.94796708,0.00032714,2]
[328325744,1717167042966,-150.0,0.00032728,2]
[328325745,1717167042975,-449.183129,0.0003274,2]
[328325746,1717167042984,-150.0,0.00032741,2]
[328325747,1717167042994,-150.0,0.0003275,2]
[328325748,1717167043003,-150.0,0.0003275,2]
[328325749,1717167043012,-1500.0,0.00032754,2]
[328325750,1717167043021,-1500.0,0.00032767,2]
[328325751,1717167043031,-43265.60418053,0.00032776,2]
[328325764,1717167043328,-338.055,0.00032776,2]
[328325767,1717167043339,-505.3,0.00032776,2]
[328325769,1717167043350,-425.80000015,0.00032776,2]
[328325770,1717167043363,-10280.9933735,0.00032776,2]
[328325771,1717167043374,-139669.67504582,0.00032776,2]
[328325772,1717167043383,-300.0,0.00032778,2]
[328325773,1717167043392,-150.0,0.00032779,2]
[328325774,1717167043403,-150.0,0.00032783,2]
[328325775,1717167043412,-150.0,0.00032785,2]
[328325776,1717167043421,-487.0,0.00032789,5]
[328325777,1717167043431,-151.42,0.0003279,2]
[328325778,1717167043440,-500.0,0.0003279,2]
[328325779,1717167043449,-286.9146,0.0003279,2]
[328325780,1717167043459,-1500.0,0.00032792,2]
[328325781,1717167043469,-150.0,0.00032799,7]
[328325782,1717167043480,-2375.5772755,0.00032799,4]
[328325783,1717167043489,-2555.178386,0.000328,2]
[328325784,1717167043499,-11505.0777,0.000328,2]
[328325785,1717167043508,-1000.0,0.000328,2]
[328325786,1717167043518,-100000.0,0.000328,2]
[328325787,1717167043527,-174.83982574,0.000328,4]
[328325788,1717167043535,-959.0,0.000328,11]
[328325789,1717167043544,-212.27538932,0.00032804,4]
[328325790,1717167043555,-150.0,0.00032824,2]
[328325791,1717167043564,-1500.0,0.00032827,2]
[328325792,1717167043573,-1414.56658336,0.0003283,10]
[328325793,1717167043583,-341.47959269,0.0003283,10]
[328325794,1717167043592,-300.70064389,0.00032849,2]
[328325795,1717167043603,-597.78,0.00032876,11]
[328325796,1717167043613,-500.0,0.00032876,11]
[328325797,1717167043622,-500.0,0.00032876,11]
[328325798,1717167043631,-500.0,0.00032876,11]
[328325799,1717167043640,-500.0,0.00032876,11]
[328325800,1717167043651,-500.0,0.00032876,11]
[328325801,1717167043660,-500.0,0.00032876,11]
[328325802,1717167043669,-500.0,0.00032876,11]
[328325803,1717167043679,-500.0,0.00032876,11]
[328325804,1717167043688,-500.0,0.00032876,11]
[328325805,1717167043697,-185.49,0.00032876,11]
[328325806,1717167043707,-500.0,0.00032876,11]
[328325807,1717167043716,-167.82,0.00032876,11]
[328325808,1717167043725,-500.0,0.00032876,11]
[328325809,1717167043734,-500.0,0.00032876,11]
[328325810,1717167043744,-500.0,0.00032876,11]
[328325811,1717167043753,-500.0,0.00032876,11]
[328325812,1717167043763,-500.0,0.00032876,11]
[328325813,1717167043772,-500.0,0.00032876,11]
[328325814,1717167043781,-500.0,0.00032876,11]
[328325815,1717167043791,-335.47775614,0.00032876,11]
[328325816,1717167043801,-500.0,0.00032876,11]
[328325817,1717167043815,-500.0,0.00032876,11]
[328325818,1717167043824,-500.0,0.00032876,11]
[328325819,1717167043833,-500.15,0.00032876,11]
[328325820,1717167043842,-500.0,0.00032876,11]
[328325821,1717167043853,-346.96877686,0.00032876,11]
[328325822,1717167043862,-592.78323964,0.00032876,11]
[328325823,1717167043871,-500.0,0.00032876,11]
[328325824,1717167043880,-500.0,0.00032876,11]
[328325825,1717167043892,-500.0,0.00032876,11]
[328325826,1717167043903,-500.0,0.00032876,11]
[328325827,1717167043913,-500.0,0.00032876,11]
[328325828,1717167043921,-500.0,0.00032876,11]
[328325829,1717167043930,-500.0,0.00032876,11]
[328325830,1717167043940,-500.0,0.00032876,11]
[328325831,1717167043949,-500.0,0.00032876,11]
[328325832,1717167043959,-500.0,0.00032876,11]
[328325833,1717167043968,-500.0,0.00032876,11]
[328325835,1717167043977,-500.0,0.00032876,11]
[328325836,1717167043986,-500.0,0.00032876,11]
[328325837,1717167043995,-500.0,0.00032876,11]
[328325838,1717167044005,-308.84176878,0.00032876,11]
[328325839,1717167044014,-500.0,0.00032876,11]
[328325840,1717167044023,-500.0,0.00032876,11]
[328325841,1717167044033,-383.36187505,0.00032876,11]
[328325842,1717167044042,-500.0,0.00032876,11]
[328325843,1717167044052,-500.0,0.00032876,11]
[328325844,1717167044061,-500.0,0.00032876,11]
[328325845,1717167044070,-500.0,0.00032876,11]
[328325846,1717167044080,-471.67412418,0.00032876,11]
[328325847,1717167044089,-500.0,0.00032876,11]
[328325848,1717167044098,-500.0,0.00032876,11]
[328325849,1717167044107,-500.0,0.00032876,11]
[328325850,1717167044116,-500.0,0.00032876,11]
[328325851,1717167044126,-500.0,0.00032876,11]
[328325852,1717167044135,-500.0,0.00032876,11]
[328325853,1717167044144,-357.42,0.00032876,11]
[328325854,1717167044156,-500.0,0.00032876,11]
[328325855,1717167044165,-160.2,0.00032876,11]
[328325856,1717167044175,-500.0,0.00032876,11]
[328325857,1717167044184,-500.0,0.00032876,11]
[328325858,1717167044193,-647.74163737,0.00032876,11]
[328325859,1717167044203,-500.0,0.00032876,11]
[328325860,1717167044212,-500.0,0.00032876,11]
[328325861,1717167044221,-500.0,0.00032876,11]
[328325862,1717167044231,-500.0,0.00032876,11]
[328325863,1717167044240,-500.0,0.00032876,11]
[328325864,1717167044249,-500.0,0.00032876,11]
[328325865,1717167044259,-500.0,0.00032876,11]
[328325866,1717167044268,-500.0,0.00032876,11]
[328325867,1717167044277,-632.53130388,0.00032876,11]
[328325868,1717167044287,-500.0,0.00032876,11]
[328325869,1717167044296,-74.5394503,0.00032876,11]
[328325870,1717167044323,-385.49113214,0.00030999,4]
[328325871,1717167044332,-175.61523327,0.00032776,2]
[328325872,1717167044342,-425.4605497,0.00032876,11]
[328325873,1717167044351,-500.0,0.00032876,11]
[328325874,1717167044360,-500.0,0.00032876,11]
[328325875,1717167044370,-80.76829571,0.00032876,11]
[328325876,1717167044382,-419.23170429,0.00032876,11]
[328325878,1717167044391,-500.0,0.00032876,11]
[328325880,1717167044403,-500.0,0.00032876,11]
[328325882,1717167044411,-500.0,0.00032876,11]
[328325884,1717167044420,-500.0,0.00032876,11]
[328325885,1717167044429,-500.0,0.00032876,11]
[328325887,1717167044437,-500.0,0.00032876,11]
[328325889,1717167044446,-223.02289618,0.00032876,11]
[328325891,1717167044455,-500.0,0.00032876,11]
[328325893,1717167044464,-500.0,0.00032876,11]
[328325895,1717167044473,-500.0,0.00032876,11]
[328325897,1717167044483,-500.0,0.00032876,11]
[328325898,1717167044492,-500.0,0.00032876,11]
[328325899,1717167044501,-500.0,0.00032876,11]
[328325900,1717167044511,-150.53935827,0.00032876,11]
[328325902,1717167044522,-349.46064173,0.00032876,11]
[328325904,1717167044532,-356.30531781,0.00032876,11]
[328325906,1717167044544,-143.69468219,0.00032876,11]
[328325908,1717167044554,-500.0,0.00032876,11]
[328325910,1717167044563,-500.0,0.00032876,11]
[328325912,1717167044572,-500.0,0.00032876,11]
[328325914,1717167044581,-487.99573774,0.00032876,11]
[328325916,1717167044592,-12.00426226,0.00032876,11]
[328325917,1717167044602,-500.0,0.00032876,11]
[328325918,1717167044612,-500.0,0.00032876,11]
[328325919,1717167044621,-500.0,0.00032876,11]
[328325920,1717167044630,-606.67704919,0.00032876,11]
[328325921,1717167044640,-500.0,0.00032876,11]
[328325922,1717167044649,-500.0,0.00032876,11]
[328325923,1717167044659,-500.0,0.00032876,11]
[328325924,1717167044668,-500.0,0.00032876,11]
[328325925,1717167044677,-500.0,0.00032876,11]
[328325926,1717167044687,-500.0,0.00032876,11]
[328325927,1717167044696,-500.0,0.00032876,11]
[328325928,1717167044705,-500.0,0.00032876,11]
[328325929,1717167044714,-500.0,0.00032876,11]
[328325930,1717167044724,-525.93,0.00032876,2]
[328325931,1717167044733,-525.93,0.00032876,2]
[328325932,1717167044742,-525.93,0.00032876,2]
[328325933,1717167044752,-599.75,0.00032876,11]
[328325934,1717167044762,-500.0,0.00032876,11]
[328325935,1717167044771,-500.0,0.00032876,11]
[328325936,1717167044781,-187.08,0.00032876,11]
[328325937,1717167044790,-500.0,0.00032876,11]
[328325938,1717167044803,-612.95,0.00032876,11]
[328325939,1717167044815,-500.0,0.00032876,11]
[328325940,1717167044825,-500.0,0.00032876,11]
[328325941,1717167044834,-500.0,0.00032876,11]
[328325942,1717167044843,-500.0,0.00032876,11]
[328325943,1717167044853,-500.0,0.00032876,11]
[328325944,1717167044862,-342.03,0.00032876,11]
[328325945,1717167044872,-500.0,0.00032876,11]
[328325946,1717167044884,-273.31,0.00032876,11]
[328325947,1717167044894,-500.0,0.00032876,11]
[328325948,1717167044906,-500.0,0.00032876,11]
[328325949,1717167044915,-177.55,0.00032876,11]
[328325950,1717167044925,-500.0,0.00032876,11]
[328325951,1717167044934,-500.0,0.00032876,11]
[328325952,1717167044944,-165.96,0.00032876,11]
[328325953,1717167044954,-500.0,0.00032876,11]
[328325954,1717167044963,-500.0,0.00032876,11]
[328325955,1717167044973,-500.0,0.00032876,11]
[328325956,1717167044983,-500.0,0.00032876,11]
[328325957,1717167044992,-500.0,0.00032876,11]
[328325958,1717167045002,-500.0,0.00032876,11]
[328325959,1717167045011,-500.0,0.00032876,11]
[328325960,1717167045020,-500.0,0.00032876,11]
[328325961,1717167045029,-500.0,0.00032876,11]
[328325962,1717167045039,-500.0,0.00032876,11]
[328325963,1717167045048,-500.0,0.00032876,11]
[328325964,1717167045057,-500.0,0.00032876,11]
[328325965,1717167045066,-187.84,0.00032876,11]
[328325966,1717167045076,-500.0,0.00032876,11]
[328325967,1717167045085,-500.0,0.00032876,11]
[328325968,1717167045094,-500.0,0.00032876,11]
[328325969,1717167045103,-329.03,0.00032876,11]
[328325970,1717167045112,-500.0,0.00032876,11]
[328325971,1717167045122,-500.0,0.00032876,11]